bitfinex/quotes_BTCUSD_20220207
["timestamp","ask_amount","ask_price","bid_price","bid_amount"]
[1644202199243,0.00127175,42554.0,42551.0,0.00460817]
[1644202199442,0.0203659,42554.0,42551.0,0.00460817]
[1644202199898,0.0013659,42554.0,42546.0,0.04280817]
[1644202200103,0.0013659,42554.0,42547.0,0.34642493]
[1644202200297,0.0013659,42554.0,42548.0,0.28599476]
[1644202200496,0.0013659,42554.0,42548.0,0.32919476]
[1644202200703,0.0013659,42554.0,42548.0,0.0432]
[1644202201301,0.0013659,42554.0,42549.0,0.00062981]
[1644202201502,0.329022,42553.0,42549.0,0.00062981]
[1644202201901,0.0153659,42554.0,42549.0,0.00062981]
[1644202202200,0.20610629,42549.0,42548.0,0.01484401]
[1644202202599,0.20416083,42551.0,42543.0,0.117514]
[1644202202800,0.30109647,42553.0,42546.0,0.058758]
[1644202203203,0.30109647,42553.0,42544.0,0.05875853]
[1644202203402,0.0013659,42554.0,42544.0,0.05875853]
[1644202203639,0.012,42553.0,42546.0,0.2191691]
[1644202204038,0.0013659,42554.0,42543.0,0.117514]
[1644202204237,0.05,42552.0,42543.0,0.117514]
[1644202204442,0.0013659,42554.0,42543.0,0.12347347]
[1644202204639,0.0013659,42554.0,42543.0,0.29097819]
[1644202204839,0.0013659,42554.0,42546.0,0.08255542]
[1644202205040,0.0013659,42554.0,42547.0,0.0432]
[1644202205439,0.0203659,42554.0,42547.0,0.0432]
[1644202205641,0.05,42550.0,42547.0,0.0432]
[1644202205848,0.0203659,42554.0,42547.0,0.06378523]
[1644202206042,0.0013659,42554.0,42547.0,0.03941443]
[1644202206444,0.058761,42563.0,42547.0,0.03941443]
[1644202206445,0.226253,42581.0,42559.0,0.08176954]
[1644202206647,0.003,42584.0,42560.0,0.35825786]
[1644202206843,0.003,42584.0,42563.0,0.1]
[1644202207044,0.003,42584.0,42564.0,0.38496938]
[1644202207302,0.053,42583.0,42577.0,0.2039325]
[1644202207495,0.003,42583.0,42578.0,0.0432]
[1644202207695,0.05,42582.0,42578.0,0.101913]
[1644202207893,0.003,42583.0,42578.0,0.101913]
[1644202208092,0.003,42583.0,42578.0,0.151913]
[1644202208292,0.003,42583.0,42578.0,0.101913]
[1644202208496,0.00311786,42583.0,42578.0,0.101913]
[1644202208693,0.23421221,42580.0,42578.0,0.101913]
[1644202208894,0.23421221,42580.0,42579.0,0.058715]
[1644202209094,0.23421221,42580.0,42579.0,0.101915]
[1644202209294,0.23421221,42580.0,42579.0,0.0432]
[1644202209295,0.28421221,42580.0,42579.0,0.0432]
[1644202209497,0.9,42579.0,42575.0,0.05]
[1644202209696,0.9,42579.0,42576.0,0.0432]
[1644202209697,0.20987353,42578.0,42576.0,0.0432]
[1644202209898,0.5274025,42578.0,42576.0,0.0432]
[1644202211549,0.5274025,42578.0,42560.0,0.00028007]
[1644202211550,1.329022,42577.0,42560.0,0.00028007]
[1644202211747,0.108752,42569.0,42557.0,0.00028007]
[1644202211946,0.108752,42569.0,42555.0,0.00028007]
[1644202211947,0.05,42569.0,42555.0,0.00028007]
[1644202212146,2.64174911,42562.0,42552.0,0.78661879]
[1644202212347,2.64174911,42562.0,42555.0,0.20282164]
[1644202212547,0.25007307,42570.0,42555.0,0.20282164]
[1644202212548,0.33845917,42567.0,42555.0,0.20282164]
[1644202212747,0.05,42568.0,42555.0,0.20282164]
[1644202212948,0.05,42565.0,42555.0,0.20282164]
[1644202213349,0.0003919,42564.0,42555.0,0.20282164]
[1644202213547,0.0003919,42564.0,42554.0,0.00028007]
[1644202213751,0.0003919,42564.0,42555.0,0.01843882]
[1644202213949,0.05,42556.0,42555.0,0.01843882]
[1644202214148,2.342069,42556.0,42555.0,0.01843882]
[1644202214352,2.621091,42556.0,42555.0,0.01843882]
[1644202214651,2.621091,42556.0,42542.0,0.16394272]
[1644202214652,0.21267533,42554.0,42551.0,0.00062916]
[1644202214899,0.379022,42552.0,42551.0,0.00062916]
[1644202215493,0.387022,42552.0,42543.0,0.00028007]
[1644202215694,0.05,42544.0,42540.0,0.00028007]
[1644202215894,0.26343867,42548.0,42539.0,0.19815996]
[1644202216094,0.04500001,42542.0,42538.0,0.00028007]
[1644202216296,0.26343867,42548.0,42536.0,0.51057485]
[1644202216495,0.35679298,42547.0,42536.0,0.51057485]
[1644202216697,0.04500001,42537.0,42536.0,0.16422279]
[1644202216899,0.04500001,42537.0,42533.0,0.00028007]
[1644202217096,0.24627357,42536.0,42530.0,0.00028007]
[1644202217297,0.04500001,42531.0,42529.0,0.00028007]
[1644202217495,0.04500001,42531.0,42525.0,0.00028007]
[1644202217697,0.24627357,42536.0,42524.0,0.08598455]
[1644202217698,0.04500001,42526.0,42524.0,0.08598455]
[1644202217897,0.28721276,42535.0,42524.0,0.00028007]
[1644202217898,0.04500001,42525.0,42524.0,0.00028007]
[1644202218197,0.04500001,42525.0,42523.0,0.00028007]
[1644202218396,0.04500001,42525.0,42521.0,0.34163213]
[1644202218653,0.33656909,42524.0,42521.0,0.0002802]
[1644202218850,0.33656909,42524.0,42518.0,0.5]
[1644202219150,0.04500001,42521.0,42516.0,0.16422292]
[1644202219346,0.04500001,42525.0,42520.0,0.0005087]
[1644202219645,0.04500001,42522.0,42499.0,0.42]
[1644202219845,0.01,42524.0,42514.0,0.00088016]
[1644202220047,0.01,42524.0,42514.0,0.00176032]
[1644202220243,0.01,42524.0,42516.0,0.05879034]
[1644202220446,0.01,42524.0,42518.0,0.05879]
[1644202220747,0.22299355,42520.0,42518.0,0.05879]
[1644202220946,0.22299355,42520.0,42514.0,0.169341]
[1644202221244,0.2031498,42521.0,42514.0,0.169341]
[1644202221450,0.2031498,42521.0,42514.0,0.05176032]
[1644202221647,0.05,42519.0,42514.0,0.05176032]
[1644202221847,0.009,42520.0,42514.0,0.00176032]
[1644202222049,0.2031498,42521.0,42514.0,0.00176032]
[1644202222801,0.05,42520.0,42514.0,0.00176032]
[1644202223001,0.2031498,42521.0,42516.0,0.058798]
[1644202223203,0.05,42523.0,42516.0,0.058798]
[1644202223603,0.01,42521.0,42516.0,0.06474235]
[1644202223802,0.2077215,42517.0,42516.0,0.06474235]
[1644202224008,0.21684134,42517.0,42516.0,0.00594435]
[1644202224204,0.00039776,42521.0,42516.0,0.00594435]
[1644202224801,0.27027649,42521.0,42516.0,0.00594435]
[1644202225001,0.27027649,42521.0,42514.0,0.00352064]
[1644202225202,0.27027649,42521.0,42515.0,0.05]
[1644202225203,0.26987873,42521.0,42515.0,0.05]
[1644202225402,0.25929421,42521.0,42516.0,0.29399911]
[1644202225602,0.26729421,42521.0,42516.0,0.40279129]
[1644202225802,0.26729421,42521.0,42516.0,0.55279129]
[1644202226065,0.23255481,42521.0,42516.0,0.55279129]
[1644202226266,0.23215705,42521.0,42516.0,0.25879218]
[1644202226466,0.00115366,42521.0,42517.0,0.12350918]
[1644202226669,0.00155142,42521.0,42517.0,0.12350918]
[1644202227466,0.00115366,42521.0,42517.0,0.12350918]
[1644202227664,0.01315366,42521.0,42517.0,0.12350918]
[1644202227865,0.01355142,42521.0,42517.0,0.12350918]
[1644202228667,0.00155142,42521.0,42517.0,0.12350918]
[1644202228866,0.00115366,42521.0,42517.0,0.12350918]
[1644202229069,0.00155142,42521.0,42517.0,0.12350918]
[1644202229668,0.01355142,42521.0,42517.0,0.12350918]
[1644202229895,9.989e-05,42523.0,42517.0,0.12350918]
[1644202230295,0.28410372,42527.0,42518.0,0.00024902]
[1644202230296,0.00039776,42521.0,42518.0,0.00024902]
[1644202231295,0.49061532,42525.0,42518.0,0.00024902]
[1644202231497,0.018,42521.0,42518.0,0.00024902]
[1644202231697,0.01929988,42521.0,42518.0,0.00024902]
[1644202232095,0.00129988,42521.0,42518.0,0.00024902]
[1644202233296,0.00129988,42521.0,42516.0,0.04524902]
[1644202233542,0.01829988,42521.0,42516.0,0.04524902]
[1644202233743,0.25561955,42519.0,42516.0,0.04524902]
[1644202234043,0.00129988,42521.0,42516.0,0.04524902]
[1644202234844,0.23009009,42518.0,42516.0,0.04552793]
[1644202235245,0.22864002,42518.0,42516.0,0.04524902]
[1644202235646,0.28664002,42518.0,42515.0,0.04527891]
[1644202235847,0.14677186,42518.0,42515.0,0.04527891]
[1644202236047,0.13877186,42518.0,42515.0,0.00027891]
[1644202236248,0.13877186,42518.0,42514.0,1.00442389]
[1644202236445,0.13877186,42518.0,42514.0,0.98942389]
[1644202236648,0.13877186,42518.0,42514.0,0.98914498]
[1644202237150,0.05,42518.0,42514.0,0.98852064]
[1644202237396,0.05,42518.0,42514.0,0.98914498]
[1644202237599,0.059,42518.0,42514.0,0.98914498]
[1644202237798,0.009,42518.0,42514.0,0.98914498]
[1644202238198,9.964e-05,42520.0,42514.0,0.98942389]
[1644202238397,9.964e-05,42520.0,42514.0,0.98879955]
[1644202238598,9.964e-05,42520.0,42514.0,0.98942389]
[1644202238797,9.964e-05,42520.0,42514.0,1.13942389]
[1644202239000,9.964e-05,42520.0,42515.0,0.00027891]
[1644202239198,9.964e-05,42520.0,42514.0,0.98942389]
[1644202239401,9.964e-05,42520.0,42514.0,0.98914498]
[1644202239599,0.05,42518.0,42514.0,0.98852064]
[1644202239803,0.05,42518.0,42514.0,0.98914498]
[1644202239999,0.05,42518.0,42514.0,1.00830233]
[1644202240198,0.05,42518.0,42514.0,1.05858124]
[1644202240403,9.964e-05,42520.0,42516.0,0.07170048]
[1644202240603,0.00039176,42523.0,42516.0,0.217585]
[1644202240604,9.32e-05,42517.0,42516.0,0.217585]
[1644202240803,9.32e-05,42517.0,42516.0,0.21786391]
[1644202241053,9.32e-05,42517.0,42516.0,0.217585]
[1644202241255,9.32e-05,42517.0,42516.0,0.48190149]
[1644202241454,9.32e-05,42517.0,42516.0,0.62510149]
[1644202241654,0.19139777,42534.0,42517.0,0.75]
[1644202241856,0.19139777,42534.0,42518.0,0.0432]
[1644202241857,0.33474411,42530.0,42518.0,0.0432]
[1644202242055,0.33474411,42530.0,42520.0,0.05]
[1644202242056,0.27731939,42529.0,42520.0,0.05]
[1644202242256,0.27731939,42529.0,42520.0,0.0432]
[1644202242458,0.27731939,42529.0,42520.0,0.0932]
[1644202242855,0.27731939,42529.0,42520.0,0.04347891]
[1644202243456,0.51479434,42529.0,42521.0,0.058791]
[1644202243655,0.52979434,42529.0,42521.0,0.05906991]
[1644202244057,0.52979434,42529.0,42521.0,0.10906991]
[1644202244256,0.51479434,42529.0,42521.0,0.10906991]
[1644202244455,0.51479434,42529.0,42521.0,0.05906991]
[1644202244655,0.23747495,42529.0,42521.0,0.10906991]
[1644202245105,0.23747495,42529.0,42521.0,0.05906991]
[1644202245305,0.23747495,42529.0,42521.0,0.158791]
[1644202245503,0.23747495,42529.0,42521.0,0.108791]
[1644202245704,0.25247495,42529.0,42521.0,0.108791]
[1644202245904,0.00011695,42527.0,42521.0,0.108791]
[1644202246304,0.00011695,42527.0,42521.0,0.058791]
[1644202246905,0.30068415,42528.0,42521.0,0.058791]
[1644202246906,0.00011695,42526.0,42521.0,0.058791]
[1644202247407,0.20736333,42522.0,42521.0,0.05]
[1644202247608,0.20736333,42522.0,42519.0,0.05]
[1644202247804,0.20736333,42522.0,42517.0,0.00027891]
[1644202248005,0.20736333,42522.0,42520.0,0.02116474]
[1644202248206,0.28159218,42523.0,42520.0,0.02116474]
[1644202248855,0.28159218,42523.0,42517.0,0.00027891]
[1644202249055,0.28159218,42523.0,42516.0,0.05027891]
[1644202249256,0.28159218,42523.0,42516.0,0.10027891]
[1644202249458,0.28159218,42523.0,42517.0,0.00062302]
[1644202249655,0.28159218,42523.0,42517.0,0.00090193]
[1644202249656,0.28959218,42523.0,42517.0,0.00090193]
[1644202249856,0.36170878,42522.0,42517.0,0.00090193]
[1644202250458,0.36170878,42522.0,42517.0,0.00027891]
[1644202250657,0.36170878,42522.0,42517.0,0.00062302]
[1644202250858,0.36170878,42522.0,42516.0,0.03617756]
[1644202251061,0.36170878,42522.0,42514.0,0.98852064]
[1644202251062,0.33257047,42521.0,42514.0,0.98852064]
[1644202251459,0.22461644,42515.0,42514.0,0.98852064]
[1644202251658,0.52611253,42515.0,42514.0,0.98852064]
[1644202251858,0.39207894,42521.0,42514.0,0.98852064]
[1644202252061,0.56097142,42515.0,42514.0,1.00737272]
[1644202252321,0.11763708,42523.0,42514.0,1.00737272]
[1644202252510,0.45087935,42524.0,42514.0,1.00737272]
[1644202252710,0.21589555,42516.0,42514.0,1.00737272]
[1644202252912,0.50087935,42524.0,42514.0,0.98852064]
[1644202253310,0.55982811,42518.0,42514.0,0.98852064]
[1644202253513,0.29054694,42517.0,42514.0,0.98852064]
[1644202254712,0.24799426,42516.0,42514.0,0.98852064]
[1644202255613,0.25599426,42516.0,42514.0,0.98852064]
[1644202256250,0.24799426,42516.0,42514.0,0.98852064]
[1644202257652,0.26599426,42516.0,42514.0,0.98852064]
[1644202258253,0.24799426,42516.0,42514.0,0.98852064]
[1644202259801,0.25699426,42516.0,42514.0,0.98852064]
[1644202260194,0.24799426,42516.0,42514.0,0.98352064]
[1644202261197,0.34799426,42516.0,42506.0,0.19837541]
[1644202261500,0.34799426,42516.0,42501.0,0.19837541]
[1644202261501,0.05,42512.0,42501.0,0.19837541]
[1644202261698,0.43881664,42511.0,42500.0,0.19837541]
[1644202261897,0.43881664,42511.0,42499.0,0.19837541]
[1644202261898,0.0432,42510.0,42499.0,0.19837541]
[1644202262098,0.0432,42510.0,42497.0,0.19837541]
[1644202262099,0.26614959,42498.0,42497.0,0.19837541]
[1644202262296,0.26614959,42498.0,42496.0,0.19837541]
[1644202262494,0.27541502,42500.0,42497.0,0.18837541]
[1644202262896,0.27541502,42500.0,42497.0,0.24796926]
[1644202263295,0.27541502,42500.0,42497.0,0.24296926]
[1644202263566,0.5579,42508.0,42498.0,0.26621554]
[1644202263762,0.017,42500.0,42499.0,0.05]
[1644202263960,0.017,42500.0,42499.0,0.17188394]
[1644202263961,0.00546067,42500.0,42499.0,0.17188394]
[1644202264159,0.00546067,42500.0,42499.0,0.12188394]
[1644202264359,0.00010581,42515.0,42499.0,0.45157496]
[1644202264562,0.26427589,42512.0,42499.0,0.50157496]
[1644202264759,0.00010581,42515.0,42507.0,0.07773036]
[1644202264964,0.00010581,42515.0,42511.0,0.05]
[1644202265166,0.00010581,42515.0,42514.0,0.05]
[1644202265361,0.00010581,42515.0,42514.0,0.37584705]
[1644202265863,0.02010581,42515.0,42514.0,0.0882]
[1644202266264,0.00010581,42515.0,42514.0,0.42462332]
[1644202266464,0.00038955,42522.0,42514.0,0.48342332]
[1644202266662,0.00038955,42522.0,42520.0,0.162585]
[1644202266862,0.00038955,42522.0,42521.0,0.0432]
[1644202267402,0.00011752,42524.0,42521.0,0.2374552]
[1644202267800,0.012,42522.0,42521.0,0.04347758]
[1644202268100,0.012,42522.0,42521.0,0.101993]
[1644202268901,0.00011752,42524.0,42521.0,0.3655165]
[1644202269103,0.00011752,42524.0,42523.0,0.045]
[1644202269303,0.00011752,42524.0,42523.0,0.41147586]
[1644202269504,0.00011752,42524.0,42523.0,0.46147586]
[1644202269706,0.02,42524.0,42523.0,0.61147586]
[1644202269905,0.003,42538.0,42537.0,0.2333901]
[1644202270106,0.003,42538.0,42537.0,0.2715901]
[1644202270305,0.003,42538.0,42537.0,0.3215901]
[1644202270908,0.003,42538.0,42537.0,0.4215901]
[1644202271167,0.003,42538.0,42537.0,0.2715901]
[1644202271563,0.008,42538.0,42537.0,0.2715901]
[1644202272160,0.003,42538.0,42537.0,0.2715901]
[1644202272762,0.69217012,42538.0,42537.0,0.0432]
[1644202272965,1.01497633,42538.0,42537.0,0.0432]
[1644202273162,0.329022,42536.0,42523.0,0.19836438]
[1644202273363,0.005,42532.0,42524.0,0.0432]
[1644202273564,0.32213656,42535.0,42524.0,0.0432]
[1644202273565,0.32713656,42535.0,42524.0,0.0432]
[1644202273867,0.32213656,42535.0,42529.0,0.21637386]
[1644202274062,0.32213656,42535.0,42530.0,0.0432]
[1644202274463,0.329022,42534.0,42530.0,0.0432]
[1644202274664,0.329022,42533.0,42530.0,0.0432]
[1644202274900,0.329022,42534.0,42530.0,0.0432]
[1644202275102,0.32225408,42535.0,42530.0,0.0432]
[1644202275303,0.32225408,42535.0,42525.0,0.045]
[1644202275304,0.005,42531.0,42525.0,0.045]
[1644202275499,0.35999752,42528.0,42523.0,0.34435571]
[1644202276101,0.005,42524.0,42520.0,0.2482487]
[1644202276301,0.22670013,42527.0,42520.0,0.00027758]
[1644202276503,0.005,42525.0,42518.0,0.00027758]
[1644202276699,0.005,42525.0,42516.0,0.29297112]
[1644202276700,0.22670013,42527.0,42517.0,0.00027758]
[1644202276901,0.22670013,42527.0,42516.0,0.04527758]
[1644202277099,0.00038959,42524.0,42519.0,0.045]
[1644202277499,0.00038959,42524.0,42519.0,0.04527758]
[1644202277699,0.00538959,42524.0,42519.0,0.00027758]
[1644202277901,0.00038959,42524.0,42518.0,0.27106302]
[1644202278099,0.005,42528.0,42518.0,0.29167801]
[1644202278300,0.00038959,42524.0,42518.0,0.29167801]
[1644202278946,0.00038959,42524.0,42518.0,0.27106302]
[1644202279249,0.47893571,42527.0,42518.0,0.32986102]
[1644202279447,0.47893571,42527.0,42518.0,0.37986102]
[1644202279448,0.00038959,42523.0,42518.0,0.37986102]
[1644202279647,0.00038959,42523.0,42518.0,0.32986102]
[1644202279945,0.00038959,42523.0,42519.0,0.19852845]
[1644202280145,0.00038959,42523.0,42519.0,0.00027758]
[1644202280346,0.00038959,42523.0,42518.0,0.46959147]
[1644202280547,0.005,42526.0,42518.0,0.46959147]
[1644202280746,0.00038959,42523.0,42518.0,0.46959147]
[1644202280947,0.00038959,42523.0,42518.0,0.2713406]
[1644202281546,0.31226541,42526.0,42518.0,0.2713406]
[1644202281746,0.25764204,42523.0,42518.0,0.2763406]
[1644202281950,0.25803163,42523.0,42518.0,0.2763406]
[1644202282147,0.25803163,42523.0,42518.0,0.00027758]
[1644202282411,0.25803163,42523.0,42517.0,0.01840155]
[1644202282412,0.005,42519.0,42517.0,0.01840155]
[1644202282611,0.329022,42518.0,42517.0,0.01840155]
[1644202282810,0.64708397,42518.0,42517.0,0.01840155]
[1644202283009,0.329022,42518.0,42513.0,0.045]
[1644202283210,0.005,42519.0,42515.0,0.00027758]
[1644202283509,0.005,42519.0,42512.0,0.28955244]
[1644202283710,0.005,42519.0,42512.0,0.24427486]
[1644202283909,0.005,42519.0,42511.0,0.00027758]
[1644202283910,0.3188,42519.0,42509.0,0.19880603]
[1644202284111,0.3188,42519.0,42510.0,0.02157275]
[1644202284112,0.005,42516.0,42510.0,0.02157275]
[1644202284313,0.005,42514.0,42513.0,0.0005014]
[1644202284711,0.005,42516.0,42513.0,0.0005014]
[1644202285413,0.005,42516.0,42512.0,0.00027758]
[1644202285414,0.33156097,42525.0,42514.0,0.045]
[1644202285613,0.005,42523.0,42518.0,0.045]
[1644202285814,0.00011318,42522.0,42515.0,0.0432]
[1644202286059,0.00011318,42522.0,42521.0,0.045]
[1644202286260,0.00011318,42522.0,42521.0,0.66269262]
[1644202286261,4.948e-05,42522.0,42521.0,0.66269262]
[1644202286460,4.948e-05,42522.0,42521.0,0.96620479]
[1644202286661,4.948e-05,42522.0,42521.0,1.41802868]
[1644202286859,4.948e-05,42522.0,42521.0,1.16241424]
[1644202287664,0.003,42538.0,42525.0,0.058773]
[1644202287862,0.22038913,42539.0,42537.0,0.25355551]
[1644202288062,0.9724,42543.0,42538.0,0.0432]
[1644202288265,0.005,42543.0,42538.0,0.0432]
[1644202288663,0.005,42540.0,42538.0,0.0432]
[1644202291706,0.005,42540.0,42538.0,0.101974]
[1644202292105,0.0011368,42542.0,42538.0,0.101974]
[1644202292311,0.005,42541.0,42538.0,0.0432]
[1644202292708,0.005,42541.0,42534.0,0.18099981]
[1644202292709,0.9,42540.0,42534.0,0.01845281]
[1644202292908,0.005,42535.0,42534.0,0.01845281]
[1644202293107,0.005,42535.0,42527.0,0.045]
[1644202293306,0.005,42532.0,42527.0,0.045]
[1644202293553,0.00222574,42532.0,42526.0,0.058786]
[1644202293751,0.00222574,42534.0,42528.0,0.24103574]
[1644202293952,0.36467825,42535.0,42528.0,0.24103574]
[1644202293953,0.00222574,42530.0,42528.0,0.24103574]
[1644202294151,0.00038376,42532.0,42528.0,0.24103574]
[1644202294352,0.00222574,42529.0,42528.0,0.24103574]
[1644202294553,0.00222574,42529.0,42526.0,0.02055754]
[1644202294751,0.00038376,42532.0,42528.0,0.04777426]
[1644202294752,0.00222574,42531.0,42528.0,0.04777426]
[1644202294955,0.00222574,42531.0,42526.0,0.02055754]
[1644202295152,0.00222574,42531.0,42524.0,0.05]
[1644202295153,0.26916452,42528.0,42524.0,0.05]
[1644202295453,0.26916452,42528.0,42523.0,0.1]
[1644202295654,0.26916452,42528.0,42523.0,0.05]
[1644202295852,0.32191965,42530.0,42523.0,0.05]
[1644202296053,0.32153589,42530.0,42523.0,0.05]
[1644202296453,0.00038376,42528.0,42523.0,0.05]
[1644202296654,0.00038376,42528.0,42527.0,0.04777426]
[1644202297307,0.322214,42531.0,42527.0,0.04777426]
[1644202297504,0.00038376,42530.0,42528.0,0.04777426]
[1644202297704,0.0026095,42530.0,42528.0,0.04777426]
[1644202297901,0.0026095,42530.0,42523.0,0.2]
[1644202298101,0.0026095,42530.0,42528.0,0.04777426]
[1644202298302,0.00038376,42530.0,42528.0,0.04777426]
[1644202298501,0.60569176,42531.0,42524.0,0.07973547]
[1644202298502,0.32443974,42531.0,42524.0,0.07973547]
[1644202298701,0.3248235,42531.0,42528.0,0.04777426]
[1644202299103,0.32259776,42531.0,42528.0,0.04777426]
[1644202299600,0.322214,42531.0,42528.0,0.04777426]
[1644202300400,0.322214,42531.0,42524.0,0.10879]
[1644202300799,0.0001081,42529.0,42524.0,0.10879]
[1644202302154,0.0001081,42529.0,42528.0,0.04777426]
[1644202302356,0.00049186,42529.0,42528.0,0.04777426]
[1644202303058,0.00049186,42529.0,42528.0,0.44504803]
[1644202303255,0.322214,42531.0,42529.0,0.9]
[1644202303256,0.09371644,42531.0,42529.0,0.9]
[1644202303456,0.09371644,42531.0,42530.0,0.55400211]
[1644202303457,0.0941002,42531.0,42530.0,0.55400211]
[1644202303657,0.0941002,42531.0,42530.0,0.40587471]
[1644202303855,0.0941002,42531.0,42530.0,0.77524929]
[1644202304454,0.0941002,42531.0,42530.0,1.09087488]
[1644202304455,0.09371644,42531.0,42530.0,1.09087488]
[1644202304654,0.09371644,42531.0,42530.0,0.58011858]
[1644202305713,0.09371644,42531.0,42530.0,0.85474905]
[1644202306116,0.09371644,42531.0,42530.0,0.48011858]
[1644202307718,0.09371644,42531.0,42530.0,0.0432]
[1644202307719,0.32893998,42531.0,42530.0,0.0432]
[1644202307917,0.09594218,42531.0,42526.0,0.04777426]
[1644202308119,0.00222574,42527.0,42526.0,0.04777426]
[1644202308316,0.09371644,42531.0,42526.0,0.04777426]
[1644202308755,0.00222574,42529.0,42526.0,0.04777426]
[1644202308956,0.00011511,42533.0,42527.0,0.058783]
[1644202309356,0.00222574,42532.0,42527.0,0.058783]
[1644202309556,0.00234085,42532.0,42527.0,0.058783]
[1644202309957,0.01434085,42532.0,42527.0,0.058783]
[1644202310159,0.01434085,42532.0,42527.0,0.10655726]
[1644202310362,0.01211511,42532.0,42530.0,0.04777426]
[1644202310558,0.00222574,42541.0,42531.0,0.05878]
[1644202310762,0.00222574,42541.0,42535.0,0.0842699]
[1644202310957,0.00222574,42541.0,42532.0,0.05]
[1644202311158,0.0011368,42542.0,42532.0,0.05]
[1644202311159,0.00222574,42533.0,42532.0,0.05]
[1644202311561,0.27844067,42542.0,42532.0,0.05]
[1644202311758,0.00222574,42537.0,42532.0,0.05]
[1644202311957,0.077,42533.0,42532.0,0.05]
[1644202313106,0.0003828,42535.0,42532.0,0.05]
[1644202313607,0.00222574,42537.0,42532.0,0.05]
[1644202313608,0.00105565,42537.0,42532.0,0.05]
[1644202313807,0.015,42535.0,42532.0,0.05]
[1644202314410,0.00105565,42537.0,42532.0,0.05]
[1644202314609,0.00105565,42541.0,42532.0,0.09894435]
[1644202315208,0.20196613,42533.0,42531.0,0.25690206]
[1644202315413,0.00105565,42533.0,42527.0,0.19812006]
[1644202315612,0.00105565,42533.0,42526.0,0.04944645]
[1644202315808,0.00115868,42533.0,42526.0,0.24756651]
[1644202316063,0.00105565,42530.0,42526.0,0.24756651]
[1644202316260,0.00105565,42530.0,42527.0,0.28904279]
[1644202316463,0.00105565,42530.0,42527.0,0.20232197]
[1644202316661,0.00010303,42533.0,42527.0,0.40044203]
[1644202316961,0.00105565,42532.0,42527.0,0.40044203]
[1644202317363,0.00105565,42532.0,42528.0,0.058783]
[1644202317562,0.00105565,42532.0,42530.0,0.08612986]
[1644202317964,0.01505565,42532.0,42528.0,0.058783]
[1644202318363,0.01505565,42532.0,42528.0,0.25690306]
[1644202318569,0.00105565,42532.0,42527.0,0.45044203]
[1644202319463,0.00010303,42533.0,42527.0,0.45044203]
[1644202319904,0.012,42532.0,42527.0,0.45044203]
[1644202320306,0.012,42532.0,42527.0,0.47212355]
[1644202320505,0.00010303,42533.0,42528.0,0.058783]
[1644202320703,0.00010303,42533.0,42527.0,0.27400349]
[1644202320903,0.00010614,42529.0,42527.0,0.27400349]
[1644202321403,0.00010614,42529.0,42527.0,0.25232197]
[1644202321904,0.01210614,42529.0,42527.0,0.25232197]
[1644202322404,0.00010614,42529.0,42528.0,0.058783]
[1644202323567,0.00010614,42529.0,42526.0,0.00061667]
[1644202323568,0.9,42528.0,42526.0,0.00061667]
[1644202323871,0.00116179,42529.0,42526.0,0.00061666]
[1644202323872,0.05436179,42529.0,42526.0,0.00061666]
[1644202324064,0.329022,42528.0,42526.0,0.00061666]
[1644202324265,0.01116179,42529.0,42526.0,0.00061666]
[1644202324463,0.00116179,42529.0,42527.0,0.0798795]
[1644202324664,0.00010614,42529.0,42528.0,0.34671133]
[1644202324866,0.00010614,42529.0,42527.0,0.0798795]
[1644202325264,0.00010614,42529.0,42527.0,0.1298795]
[1644202325664,0.00010614,42529.0,42528.0,0.19942]
[1644202325865,0.01310614,42529.0,42528.0,0.19942]
[1644202326064,0.013,42529.0,42528.0,0.19942]
[1644202327314,0.00105565,42531.0,42528.0,0.19942]
[1644202327507,0.00105565,42531.0,42530.0,0.04894435]
[1644202327905,0.012,42531.0,42530.0,0.04894435]
[1644202328108,0.012,42531.0,42530.0,0.4266778]
[1644202328309,0.00010951,42535.0,42531.0,0.9]
[1644202328509,0.00010951,42535.0,42534.0,0.04894435]
[1644202328709,0.00010951,42535.0,42534.0,0.3400065]
[1644202328911,0.00010951,42535.0,42534.0,0.5400065]
[1644202330012,0.02010951,42535.0,42534.0,0.5400065]
[1644202330412,0.02010951,42535.0,42534.0,0.29214435]
[1644202330613,0.00010951,42535.0,42534.0,0.29214435]
[1644202330813,0.00010951,42535.0,42534.0,0.19214435]
[1644202331064,4.951e-05,42535.0,42534.0,0.19214435]
[1644202331363,0.00038184,42537.0,42534.0,0.19214435]
[1644202331364,0.00048465,42537.0,42534.0,0.56447525]
[1644202331563,0.00048465,42537.0,42536.0,0.25318326]
[1644202331766,0.00048465,42537.0,42536.0,0.72991228]
[1644202331964,0.01548465,42537.0,42536.0,0.49638326]
[1644202332164,0.01510281,42537.0,42536.0,0.49638326]
[1644202332566,0.00010281,42537.0,42536.0,0.29638326]
[1644202333166,0.00010281,42537.0,42536.0,0.63540941]
[1644202333767,0.00010281,42537.0,42536.0,0.49638326]
[1644202333968,0.02110281,42537.0,42536.0,0.49638326]
[1644202334168,0.02110281,42537.0,42536.0,0.78089317]
[1644202334371,0.02110281,42537.0,42536.0,0.73089317]
[1644202334568,0.02110281,42537.0,42536.0,0.34638326]
[1644202334813,0.02215846,42537.0,42536.0,0.101957]
[1644202335008,0.02215846,42537.0,42530.0,0.05]
[1644202335207,0.00115846,42537.0,42530.0,0.05]
[1644202335708,0.00115846,42537.0,42530.0,0.0932]
[1644202335909,0.01254029,42537.0,42534.0,0.25557888]
[1644202336509,0.00154029,42537.0,42535.0,0.27551835]
[1644202336711,0.00154029,42537.0,42536.0,0.09214435]
[1644202336712,0.00048464,42537.0,42536.0,0.09214435]
[1644202336912,0.00010281,42537.0,42536.0,0.0432]
[1644202337111,0.00115846,42537.0,42536.0,0.0432]
[1644202337309,0.00115846,42537.0,42530.0,0.06877811]
[1644202337310,0.12959999,42535.0,42530.0,0.05]
[1644202337512,0.00105565,42531.0,42527.0,0.05]
[1644202337910,0.02505565,42531.0,42529.0,0.20175538]
[1644202338109,0.02505565,42531.0,42529.0,0.27351844]
[1644202338964,0.02505565,42531.0,42529.0,0.20175538]
[1644202339165,0.00105565,42531.0,42529.0,0.20175538]
[1644202339964,0.01505565,42531.0,42529.0,0.20175538]
[1644202340367,0.014,42531.0,42530.0,0.04894435]
[1644202340568,0.014,42531.0,42530.0,0.09214435]
[1644202341166,0.12959999,42535.0,42530.0,0.20969035]
[1644202341969,0.14559999,42535.0,42530.0,0.20969035]
[1644202342422,0.14559999,42535.0,42530.0,0.20968619]